[Event "Titled Tuesday Blitz October 25 Late 2022"]
[White "Mendez Fortes, Eduardo Jesus"]
[Black "Gunduz, Umut Erdem"]
[WhiteFideId "3502376"]
[BlackFideId "6381383"]
[WhiteElo "2307"]
[BlackElo "2182"]
[Result "1-0"]
[Round "07"]
[TimeControl "180+1"]
[Date "2022.10.26"]
[WhiteClock "0:01:18"]
[BlackClock "0:00:03"]

1. e4 {[%clk 0:03:00]}  e5 {[%clk 0:02:59]} 2. Nf3 {[%clk 0:03:00]}  Nc6 {[%clk 0:03:00]} 3. Bb5 {[%clk 0:03:00]}  a6 {[%clk 0:02:59]} 4. Ba4 {[%clk 0:03:01]}  Nf6 {[%clk 0:02:59]} 5. O-O {[%clk 0:03:01]}  Be7 {[%clk 0:02:58]} 6. Re1 {[%clk 0:03:01]}  b5 {[%clk 0:02:59]} 7. Bb3 {[%clk 0:03:01]}  O-O {[%clk 0:03:00]} 8. c3 {[%clk 0:03:01]}  d5 {[%clk 0:03:00]} 9. exd5 {[%clk 0:03:02]}  Nxd5 {[%clk 0:03:01]} 10. Nxe5 {[%clk 0:03:03]}  Nxe5 {[%clk 0:03:01]} 11. Rxe5 {[%clk 0:03:03]}  c6 {[%clk 0:03:02]} 12. d4 {[%clk 0:03:02]}  Bd6 {[%clk 0:03:03]} 13. Re1 {[%clk 0:03:01]}  Qh4 {[%clk 0:03:03]} 14. g3 {[%clk 0:03:01]}  Qh3 {[%clk 0:03:03]} 15. Re4 {[%clk 0:03:02]}  g5 {[%clk 0:03:04]} 16. Qe2 {[%clk 0:03:01]}  f5 {[%clk 0:02:19]} 17. Re5 {[%clk 0:03:00]}  Bxe5 {[%clk 0:02:04]} 18. Qxe5 {[%clk 0:03:01]}  f4 {[%clk 0:01:32]} 19. Qxg5+ {[%clk 0:02:44]}  Kh8 {[%clk 0:01:26]} 20. Bxd5 {[%clk 0:02:41]}  cxd5 {[%clk 0:01:21]} 21. Bxf4 {[%clk 0:02:40]}  Rxf4 {[%clk 0:01:03]} 22. Qxf4 {[%clk 0:02:41]}  Bf5 {[%clk 0:00:58]} 23. Qe5+ {[%clk 0:02:38]}  Kg8 {[%clk 0:00:54]} 24. Nd2 {[%clk 0:02:30]}  Rd8 {[%clk 0:00:30]} 25. Re1 {[%clk 0:02:28]}  Qg4 {[%clk 0:00:24]} 26. Qe7 {[%clk 0:02:24]}  Rc8 {[%clk 0:00:17]} 27. Nf1 {[%clk 0:02:17]}  Be4 {[%clk 0:00:15]} 28. Nd2 {[%clk 0:02:10]}  Bg6 {[%clk 0:00:16]} 29. Qe2 {[%clk 0:02:08]}  Qh3 {[%clk 0:00:14]} 30. Qe6+ {[%clk 0:02:04]}  Qxe6 {[%clk 0:00:12]} 31. Rxe6 {[%clk 0:02:05]}  b4 {[%clk 0:00:12]} 32. Re3 {[%clk 0:02:05]}  a5 {[%clk 0:00:10]} 33. Nb3 {[%clk 0:02:01]}  a4 {[%clk 0:00:10]} 34. Nc5 {[%clk 0:01:59]}  a3 {[%clk 0:00:11]} 35. bxa3 {[%clk 0:01:54]}  bxa3 {[%clk 0:00:11]} 36. Re7 {[%clk 0:01:50]}  Ra8 {[%clk 0:00:10]} 37. Rb7 {[%clk 0:01:47]}  Bh5 {[%clk 0:00:06]} 38. f4 {[%clk 0:01:41]}  Be2 {[%clk 0:00:06]} 39. Nb3 {[%clk 0:01:37]}  Bc4 {[%clk 0:00:05]} 40. Kf2 {[%clk 0:01:37]}  Re8 {[%clk 0:00:05]} 41. Nc1 {[%clk 0:01:36]}  h5 {[%clk 0:00:03]} 42. Ra7 {[%clk 0:01:36]}  Rb8 {[%clk 0:00:03]} 43. Rxa3 {[%clk 0:01:33]}  Rb1 {[%clk 0:00:04]} 44. Ra8+ {[%clk 0:01:31]}  Kf7 {[%clk 0:00:04]} 45. Nb3 {[%clk 0:01:31]}  Rb2+ {[%clk 0:00:03]} 46. Kf3 {[%clk 0:01:30]}  Rxh2 {[%clk 0:00:03]} 47. Nc5 {[%clk 0:01:29]}  Be2+ {[%clk 0:00:03]} 48. Ke3 {[%clk 0:01:29]}  Bc4 {[%clk 0:00:04]} 49. a4 {[%clk 0:01:28]}  Rg2 {[%clk 0:00:05]} 50. Kf3 {[%clk 0:01:28]}  Rc2 {[%clk 0:00:05]} 51. a5 {[%clk 0:01:27]}  Rxc3+ {[%clk 0:00:06]} 52. Kf2 {[%clk 0:01:26]}  Rc2+ {[%clk 0:00:06]} 53. Ke1 {[%clk 0:01:25]}  Rc3 {[%clk 0:00:06]} 54. a6 {[%clk 0:01:24]}  Rxg3 {[%clk 0:00:06]} 55. Rh8 {[%clk 0:01:22]}  Kg7 {[%clk 0:00:06]} 56. a7 {[%clk 0:01:21]}  Kxh8 {[%clk 0:00:06]} 57. a8=Q+ {[%clk 0:01:22]}  Kh7 {[%clk 0:00:07]} 58. Qb7+ {[%clk 0:01:21]}  Rg7 {[%clk 0:00:07]} 59. Qc6 {[%clk 0:01:21]}  h4 {[%clk 0:00:07]} 60. Qf6 {[%clk 0:01:19]}  Rg1+ {[%clk 0:00:04]} 61. Kd2 {[%clk 0:01:18]}  Rg2+ {[%clk 0:00:04]} 62. Kc3 {[%clk 0:01:19]}  Rg3+ {[%clk 0:00:05]} 63. Kc2 {[%clk 0:01:18]}  Rg2+ {[%clk 0:00:06]} 64. Kc3 {[%clk 0:01:19]}  Rg3+ {[%clk 0:00:06]} 65. Kb4 {[%clk 0:01:19]}  Rg1 {[%clk 0:00:03]} 66. Ne6 {[%clk 0:01:18]}  Rb1+ {[%clk 0:00:02]} 67. Kc5 {[%clk 0:01:18]}  Rb5+ {[%clk 0:00:03]} 68. Kc6 {[%clk 0:01:18]} 1-0


[Site "https://www.chess.com"]

[Event "Titled Tuesday Blitz October 25 Late 2022"]
[White "Mickiewicz, Piotr"]
[Black "Weisz, Bryan"]
[WhiteFideId "1114891"]
[BlackFideId "30934133"]
[WhiteElo "2246"]
[BlackElo "2262"]
[Result "0-1"]
[Round "07"]
[TimeControl "180+1"]
[Date "2022.10.26"]
[WhiteClock "0:00:23"]
[BlackClock "0:00:57"]

1. e4 {[%clk 0:03:00]}  e5 {[%clk 0:02:59]} 2. Nf3 {[%clk 0:03:01]}  Nc6 {[%clk 0:03:00]} 3. Bc4 {[%clk 0:03:01]}  Nf6 {[%clk 0:03:01]} 4. d3 {[%clk 0:03:01]}  h6 {[%clk 0:03:00]} 5. Bb3 {[%clk 0:02:59]}  g5 {[%clk 0:03:00]} 6. c3 {[%clk 0:02:51]}  Bg7 {[%clk 0:02:54]} 7. h3 {[%clk 0:02:49]}  d5 {[%clk 0:02:43]} 8. Nbd2 {[%clk 0:02:44]}  Be6 {[%clk 0:02:40]} 9. O-O {[%clk 0:02:32]}  Qd7 {[%clk 0:02:36]} 10. Ba4 {[%clk 0:02:28]}  Qd6 {[%clk 0:02:23]} 11. exd5 {[%clk 0:02:26]}  Bxd5 {[%clk 0:02:20]} 12. Nxe5 {[%clk 0:02:17]}  O-O-O {[%clk 0:02:09]} 13. Ndc4 {[%clk 0:02:04]}  Bxc4 {[%clk 0:02:08]} 14. Nxc4 {[%clk 0:02:03]}  Qxd3 {[%clk 0:02:08]} 15. Qxd3 {[%clk 0:02:03]}  Rxd3 {[%clk 0:02:09]} 16. Bxc6 {[%clk 0:02:02]}  bxc6 {[%clk 0:02:09]} 17. Ne5 {[%clk 0:02:02]}  Rd5 {[%clk 0:02:06]} 18. Nxc6 {[%clk 0:02:00]}  Re8 {[%clk 0:02:05]} 19. Be3 {[%clk 0:01:56]}  Kb7 {[%clk 0:02:02]} 20. Nb4 {[%clk 0:01:50]}  Rf5 {[%clk 0:01:57]} 21. Rad1 {[%clk 0:01:47]}  g4 {[%clk 0:01:57]} 22. h4 {[%clk 0:01:41]}  g3 {[%clk 0:01:54]} 23. Nd3 {[%clk 0:01:26]}  Ng4 {[%clk 0:01:51]} 24. Bd4 {[%clk 0:01:16]}  Bxd4 {[%clk 0:01:49]} 25. cxd4 {[%clk 0:01:17]}  gxf2+ {[%clk 0:01:42]} 26. Nxf2 {[%clk 0:01:14]}  Ne3 {[%clk 0:01:41]} 27. Rde1 {[%clk 0:01:04]}  Re6 {[%clk 0:01:31]} 28. g4 {[%clk 0:00:48]}  Rf3 {[%clk 0:01:23]} 29. d5 {[%clk 0:00:46]}  Re5 {[%clk 0:01:03]} 30. Nd3 {[%clk 0:00:43]}  Rg3+ {[%clk 0:00:57]} 31. Kh2 {[%clk 0:00:38]}  Nxf1+ {[%clk 0:00:56]} 32. Rxf1 {[%clk 0:00:38]}  Rxd3 {[%clk 0:00:57]} 33. Rxf7 {[%clk 0:00:38]}  Rdxd5 {[%clk 0:00:56]} 34. Kg3 {[%clk 0:00:36]}  Rd2 {[%clk 0:00:57]} 35. Rh7 {[%clk 0:00:29]}  Re6 {[%clk 0:00:56]} 36. Kf4 {[%clk 0:00:28]}  Rxb2 {[%clk 0:00:56]} 37. Kf5 {[%clk 0:00:27]}  Reb6 {[%clk 0:00:56]} 38. a4 {[%clk 0:00:25]}  Ra2 {[%clk 0:00:56]} 39. g5 {[%clk 0:00:22]}  hxg5 {[%clk 0:00:55]} 40. hxg5 {[%clk 0:00:23]}  Rxa4 {[%clk 0:00:56]} 41. g6 {[%clk 0:00:23]}  Ra5+ {[%clk 0:00:56]} 42. Kf4 {[%clk 0:00:23]}  Rxg6 {[%clk 0:00:57]} 0-1


[Site "https://www.chess.com"]

[Event "Titled Tuesday Blitz October 25 Late 2022"]
[White "Moreno Perez, Tobias Sebastian"]
[Black "Amburgy, Ryan"]
[WhiteFideId "186716"]
[BlackFideId "30924820"]
[WhiteElo "2492"]
[BlackElo "2121"]
[Result "1-0"]
[Round "07"]
[TimeControl "180+1"]
[Date "2022.10.26"]
[WhiteClock "0:00:18"]
[BlackClock "0:00:15"]

1. d4 {[%clk 0:03:00]}  Nf6 {[%clk 0:03:00]} 2. Nf3 {[%clk 0:02:59]}  e6 {[%clk 0:03:00]} 3. g3 {[%clk 0:02:58]}  d5 {[%clk 0:02:59]} 4. Bg2 {[%clk 0:02:58]}  b5 {[%clk 0:02:55]} 5. O-O {[%clk 0:02:59]}  Be7 {[%clk 0:02:54]} 6. a4 {[%clk 0:02:57]}  c6 {[%clk 0:02:53]} 7. Qd3 {[%clk 0:02:46]}  a6 {[%clk 0:02:47]} 8. Nbd2 {[%clk 0:02:46]}  Bb7 {[%clk 0:02:32]} 9. e4 {[%clk 0:02:44]}  h6 {[%clk 0:02:26]} 10. c3 {[%clk 0:02:41]}  O-O {[%clk 0:02:25]} 11. Re1 {[%clk 0:02:38]}  c5 {[%clk 0:02:09]} 12. e5 {[%clk 0:02:32]}  Nfd7 {[%clk 0:02:06]} 13. axb5 {[%clk 0:02:13]}  c4 {[%clk 0:02:06]} 14. Qe2 {[%clk 0:02:07]}  axb5 {[%clk 0:02:07]} 15. Rxa8 {[%clk 0:02:08]}  Bxa8 {[%clk 0:02:08]} 16. h4 {[%clk 0:02:08]}  Re8 {[%clk 0:01:55]} 17. Nh2 {[%clk 0:02:07]}  Nf8 {[%clk 0:01:55]} 18. Ndf1 {[%clk 0:02:04]}  Ng6 {[%clk 0:01:41]} 19. h5 {[%clk 0:02:03]}  Nf8 {[%clk 0:01:41]} 20. Ng4 {[%clk 0:02:00]}  Nbd7 {[%clk 0:01:30]} 21. Nxh6+ {[%clk 0:00:50]}  gxh6 {[%clk 0:01:30]} 22. Qg4+ {[%clk 0:00:50]}  Kh7 {[%clk 0:01:03]} 23. Qf4 {[%clk 0:00:50]}  Bg5 {[%clk 0:00:57]} 24. Qxf7+ {[%clk 0:00:49]}  Kh8 {[%clk 0:00:57]} 25. Bxg5 {[%clk 0:00:45]}  hxg5 {[%clk 0:00:58]} 26. Ra1 {[%clk 0:00:38]}  Re7 {[%clk 0:00:45]} 27. Rxa8 {[%clk 0:00:34]}  Qxa8 {[%clk 0:00:45]} 28. Qxe7 {[%clk 0:00:34]}  Nh7 {[%clk 0:00:16]} 29. Qxd7 {[%clk 0:00:33]}  b4 {[%clk 0:00:17]} 30. h6 {[%clk 0:00:31]}  Qf8 {[%clk 0:00:16]} 31. Qg7+ {[%clk 0:00:27]}  Qxg7 {[%clk 0:00:16]} 32. hxg7+ {[%clk 0:00:28]}  Kxg7 {[%clk 0:00:17]} 33. cxb4 {[%clk 0:00:28]}  Nf8 {[%clk 0:00:17]} 34. Ne3 {[%clk 0:00:25]}  Nd7 {[%clk 0:00:18]} 35. f4 {[%clk 0:00:25]}  gxf4 {[%clk 0:00:17]} 36. gxf4 {[%clk 0:00:26]}  Nb8 {[%clk 0:00:17]} 37. Bh3 {[%clk 0:00:25]}  Kf7 {[%clk 0:00:18]} 38. f5 {[%clk 0:00:23]}  exf5 {[%clk 0:00:18]} 39. Bxf5 {[%clk 0:00:24]}  Nc6 {[%clk 0:00:19]} 40. Nc2 {[%clk 0:00:24]}  Ke7 {[%clk 0:00:19]} 41. Kf2 {[%clk 0:00:24]}  Nd8 {[%clk 0:00:18]} 42. Ke3 {[%clk 0:00:24]}  Nf7 {[%clk 0:00:18]} 43. b5 {[%clk 0:00:23]}  Kd8 {[%clk 0:00:18]} 44. Nb4 {[%clk 0:00:23]}  Kc7 {[%clk 0:00:15]} 45. Nxd5+ {[%clk 0:00:23]}  Kb8 {[%clk 0:00:15]} 46. b6 {[%clk 0:00:21]}  c3 {[%clk 0:00:15]} 47. bxc3 {[%clk 0:00:21]}  Nd8 {[%clk 0:00:15]} 48. Bd7 {[%clk 0:00:20]}  Nc6 {[%clk 0:00:15]} 49. Bxc6 {[%clk 0:00:18]} 1-0


[Site "https://www.chess.com"]

[Event "Titled Tuesday Blitz October 25 Late 2022"]
[White "Ozen, Bahadir"]
[Black "Andreikin, Dmitry"]
[WhiteFideId "6337058"]
[BlackFideId "4158814"]
[WhiteElo "2503"]
[BlackElo "2736"]
[Result "0-1"]
[Round "07"]
[TimeControl "180+1"]
[Date "2022.10.26"]
[WhiteClock "0:01:12"]
[BlackClock "0:02:28"]

1. g3 {[%clk 0:03:00]}  Nf6 {[%clk 0:02:59]} 2. Bg2 {[%clk 0:03:01]}  e5 {[%clk 0:02:59]} 3. d3 {[%clk 0:03:01]}  d5 {[%clk 0:02:59]} 4. Nf3 {[%clk 0:03:01]}  Bd6 {[%clk 0:02:58]} 5. O-O {[%clk 0:02:58]}  O-O {[%clk 0:02:59]} 6. Nc3 {[%clk 0:02:58]}  c6 {[%clk 0:02:58]} 7. e4 {[%clk 0:02:59]}  h6 {[%clk 0:02:56]} 8. h3 {[%clk 0:02:54]}  Re8 {[%clk 0:02:56]} 9. Re1 {[%clk 0:02:53]}  d4 {[%clk 0:02:54]} 10. Ne2 {[%clk 0:02:49]}  c5 {[%clk 0:02:55]} 11. a4 {[%clk 0:02:44]}  Nc6 {[%clk 0:02:53]} 12. Nd2 {[%clk 0:02:43]}  Na5 {[%clk 0:02:52]} 13. Rf1 {[%clk 0:02:38]}  Be6 {[%clk 0:02:49]} 14. b3 {[%clk 0:02:38]}  Nd7 {[%clk 0:02:47]} 15. f4 {[%clk 0:02:37]}  f6 {[%clk 0:02:48]} 16. f5 {[%clk 0:02:34]}  Bf7 {[%clk 0:02:48]} 17. Bf3 {[%clk 0:02:29]}  a6 {[%clk 0:02:45]} 18. Nc4 {[%clk 0:01:58]}  Nxc4 {[%clk 0:02:44]} 19. dxc4 {[%clk 0:01:59]}  b5 {[%clk 0:02:44]} 20. axb5 {[%clk 0:01:58]}  axb5 {[%clk 0:02:45]} 21. Rxa8 {[%clk 0:01:59]}  Qxa8 {[%clk 0:02:45]} 22. cxb5 {[%clk 0:01:59]}  c4 {[%clk 0:02:45]} 23. bxc4 {[%clk 0:01:50]}  Bxc4 {[%clk 0:02:45]} 24. Bh5 {[%clk 0:01:44]}  Rc8 {[%clk 0:02:40]} 25. Nc3 {[%clk 0:01:38]}  Bxf1 {[%clk 0:02:39]} 26. Qg4 {[%clk 0:01:15]}  Rxc3 {[%clk 0:02:30]} 27. Bxh6 {[%clk 0:01:14]}  Bf8 {[%clk 0:02:30]} 28. Qg6 {[%clk 0:01:12]}  Bc4 {[%clk 0:02:28]} 0-1


[Site "https://www.chess.com"]

[Event "Titled Tuesday Blitz October 25 Late 2022"]
[White "Papp, Petra"]
[Black "Papp, Levente"]
[WhiteFideId "739049"]
[BlackFideId "751243"]
[WhiteElo "2259"]
[BlackElo "2380"]
[Result "1-0"]
[Round "07"]
[TimeControl "180+1"]
[Date "2022.10.26"]
[WhiteClock "0:00:30"]
[BlackClock "0:00:01"]

1. d4 {[%clk 0:03:00]}  e6 {[%clk 0:02:58]} 2. e4 {[%clk 0:02:59]}  d5 {[%clk 0:02:58]} 3. Nc3 {[%clk 0:02:53]}  Bb4 {[%clk 0:02:58]} 4. e5 {[%clk 0:02:53]}  Ne7 {[%clk 0:02:58]} 5. a3 {[%clk 0:02:53]}  Bxc3+ {[%clk 0:02:59]} 6. bxc3 {[%clk 0:02:54]}  b6 {[%clk 0:02:59]} 7. Qg4 {[%clk 0:02:50]}  Ng6 {[%clk 0:02:59]} 8. h4 {[%clk 0:02:49]}  h5 {[%clk 0:03:00]} 9. Qd1 {[%clk 0:02:42]}  Qd7 {[%clk 0:03:00]} 10. Bg5 {[%clk 0:02:40]}  Ba6 {[%clk 0:02:59]} 11. Bxa6 {[%clk 0:02:38]}  Nxa6 {[%clk 0:02:59]} 12. Ne2 {[%clk 0:02:37]}  Qa4 {[%clk 0:02:53]} 13. O-O {[%clk 0:02:31]}  Ne7 {[%clk 0:02:01]} 14. Ng3 {[%clk 0:01:49]}  g6 {[%clk 0:01:49]} 15. Bxe7 {[%clk 0:01:49]}  Kxe7 {[%clk 0:01:49]} 16. f4 {[%clk 0:01:49]}  c5 {[%clk 0:01:45]} 17. Qd2 {[%clk 0:01:45]}  Rag8 {[%clk 0:01:42]} 18. Rf2 {[%clk 0:01:41]}  Nb8 {[%clk 0:01:38]} 19. Raf1 {[%clk 0:01:34]}  Nc6 {[%clk 0:01:37]} 20. f5 {[%clk 0:01:34]}  gxf5 {[%clk 0:01:37]} 21. Nxf5+ {[%clk 0:01:34]}  exf5 {[%clk 0:01:37]} 22. Rxf5 {[%clk 0:01:34]}  Nd8 {[%clk 0:01:37]} 23. Qf4 {[%clk 0:01:29]}  Qxc2 {[%clk 0:00:52]} 24. Rf2 {[%clk 0:01:05]}  Qd1+ {[%clk 0:00:47]} 25. Kh2 {[%clk 0:01:04]}  Rh7 {[%clk 0:00:27]} 26. e6 {[%clk 0:01:02]}  Rg4 {[%clk 0:00:03]} 27. Qc7+ {[%clk 0:00:56]}  Kf8 {[%clk 0:00:03]} 28. Qxd8+ {[%clk 0:00:54]}  Kg7 {[%clk 0:00:03]} 29. Rxf7+ {[%clk 0:00:49]}  Kh6 {[%clk 0:00:02]} 30. R2f6+ {[%clk 0:00:34]}  Rg6 {[%clk 0:00:01]} 31. Qf8+ {[%clk 0:00:33]}  Rg7 {[%clk 0:00:01]} 32. Qxg7# {[%clk 0:00:30]} 1-0


[Site "https://www.chess.com"]

[Event "Titled Tuesday Blitz October 25 Late 2022"]
[White "Pein, Jonathan"]
[Black "Garayev, Kanan"]
[WhiteFideId "417092"]
[BlackFideId "13406671"]
[WhiteElo "2240"]
[BlackElo "2244"]
[Result "0-1"]
[Round "07"]
[TimeControl "180+1"]
[Date "2022.10.26"]
[WhiteClock "0:00:04"]
[BlackClock "0:01:35"]

1. e4 {[%clk 0:03:00]}  c5 {[%clk 0:02:56]} 2. Nf3 {[%clk 0:02:59]}  Nf6 {[%clk 0:02:56]} 3. e5 {[%clk 0:02:52]}  Nd5 {[%clk 0:02:56]} 4. Nc3 {[%clk 0:02:47]}  e6 {[%clk 0:02:56]} 5. g3 {[%clk 0:02:34]}  Nc6 {[%clk 0:02:55]} 6. Bg2 {[%clk 0:02:34]}  d6 {[%clk 0:02:55]} 7. exd6 {[%clk 0:02:32]}  Bxd6 {[%clk 0:02:55]} 8. Nxd5 {[%clk 0:02:32]}  exd5 {[%clk 0:02:55]} 9. d4 {[%clk 0:02:30]}  Bg4 {[%clk 0:02:50]} 10. dxc5 {[%clk 0:02:24]}  Bxc5 {[%clk 0:02:51]} 11. O-O {[%clk 0:02:21]}  O-O {[%clk 0:02:51]} 12. h3 {[%clk 0:02:21]}  Bh5 {[%clk 0:02:51]} 13. Qd3 {[%clk 0:02:03]}  Bg6 {[%clk 0:02:47]} 14. Qd2 {[%clk 0:01:53]}  Re8 {[%clk 0:02:41]} 15. c3 {[%clk 0:01:48]}  Qc7 {[%clk 0:02:34]} 16. Qxd5 {[%clk 0:01:35]}  Ne7 {[%clk 0:02:32]} 17. Qe5 {[%clk 0:01:15]}  Qb6 {[%clk 0:02:22]} 18. b4 {[%clk 0:01:04]}  Bd6 {[%clk 0:02:20]} 19. Qd4 {[%clk 0:01:01]}  Qc7 {[%clk 0:02:20]} 20. Nh4 {[%clk 0:00:53]}  Be5 {[%clk 0:02:13]} 21. Qc5 {[%clk 0:00:41]}  Qxc5 {[%clk 0:02:13]} 22. bxc5 {[%clk 0:00:42]}  Bxc3 {[%clk 0:02:14]} 23. Bxb7 {[%clk 0:00:23]}  Bxa1 {[%clk 0:02:06]} 24. Nxg6 {[%clk 0:00:23]}  Nxg6 {[%clk 0:02:04]} 25. Bxa8 {[%clk 0:00:21]}  Rxa8 {[%clk 0:02:05]} 26. Be3 {[%clk 0:00:19]}  Be5 {[%clk 0:02:03]} 27. c6 {[%clk 0:00:18]}  Rc8 {[%clk 0:02:00]} 28. Rd1 {[%clk 0:00:18]}  h5 {[%clk 0:01:48]} 29. f4 {[%clk 0:00:18]}  Bc7 {[%clk 0:01:46]} 30. Bxa7 {[%clk 0:00:17]}  Ra8 {[%clk 0:01:44]} 31. Bf2 {[%clk 0:00:10]}  Ra6 {[%clk 0:01:44]} 32. Rd7 {[%clk 0:00:11]}  Rxc6 {[%clk 0:01:43]} 33. a4 {[%clk 0:00:11]}  Bb6 {[%clk 0:01:41]} 34. Rd5 {[%clk 0:00:06]}  Rc1+ {[%clk 0:01:40]} 35. Kg2 {[%clk 0:00:06]}  Rc2 {[%clk 0:01:40]} 36. Rb5 {[%clk 0:00:02]}  Bxf2 {[%clk 0:01:39]} 37. Kh1 {[%clk 0:00:03]}  Bxg3 {[%clk 0:01:39]} 38. Rxh5 {[%clk 0:00:03]}  Nxf4 {[%clk 0:01:37]} 39. a5 {[%clk 0:00:04]}  Nxh5 {[%clk 0:01:35]} 0-1


[Site "https://www.chess.com"]

[Event "Titled Tuesday Blitz October 25 Late 2022"]
[White "Prydun, Andriy"]
[Black "Radovic, Luka"]
[WhiteFideId "14145898"]
[BlackFideId "911569"]
[WhiteElo "2163"]
[BlackElo "2257"]
[Result "0-1"]
[Round "07"]
[TimeControl "180+1"]
[Date "2022.10.26"]
[WhiteClock "0:00:01"]
[BlackClock "0:01:40"]

1. e4 {[%clk 0:02:54]}  c5 {[%clk 0:02:59]} 2. Nf3 {[%clk 0:02:54]}  d6 {[%clk 0:02:59]} 3. c3 {[%clk 0:02:54]}  Nf6 {[%clk 0:02:59]} 4. h3 {[%clk 0:02:54]}  Nc6 {[%clk 0:02:57]} 5. Bd3 {[%clk 0:02:53]}  d5 {[%clk 0:02:57]} 6. Qe2 {[%clk 0:02:20]}  dxe4 {[%clk 0:02:50]} 7. Bxe4 {[%clk 0:02:21]}  Nxe4 {[%clk 0:02:50]} 8. Qxe4 {[%clk 0:02:22]}  g6 {[%clk 0:02:48]} 9. O-O {[%clk 0:02:17]}  Bf5 {[%clk 0:02:48]} 10. Qe3 {[%clk 0:02:09]}  Bg7 {[%clk 0:02:46]} 11. Qxc5 {[%clk 0:02:07]}  Bd3 {[%clk 0:02:44]} 12. Re1 {[%clk 0:02:04]}  O-O {[%clk 0:02:44]} 13. Qe3 {[%clk 0:00:58]}  e5 {[%clk 0:02:43]} 14. Rd1 {[%clk 0:00:51]}  e4 {[%clk 0:02:42]} 15. Ne1 {[%clk 0:00:50]}  Re8 {[%clk 0:02:39]} 16. Na3 {[%clk 0:00:47]}  f5 {[%clk 0:02:38]} 17. b3 {[%clk 0:00:44]}  f4 {[%clk 0:02:35]} 18. Qxf4 {[%clk 0:00:43]}  Be2 {[%clk 0:02:35]} 19. Bb2 {[%clk 0:00:42]}  Bxd1 {[%clk 0:02:35]} 20. Rxd1 {[%clk 0:00:42]}  Qf6 {[%clk 0:02:26]} 21. Qxf6 {[%clk 0:00:25]}  Bxf6 {[%clk 0:02:27]} 22. Nc4 {[%clk 0:00:25]}  Rad8 {[%clk 0:02:26]} 23. Ne3 {[%clk 0:00:25]}  Ne5 {[%clk 0:02:22]} 24. c4 {[%clk 0:00:21]}  Nf3+ {[%clk 0:02:16]} 25. gxf3 {[%clk 0:00:19]}  Bxb2 {[%clk 0:02:16]} 26. fxe4 {[%clk 0:00:14]}  Rxe4 {[%clk 0:02:17]} 27. Kg2 {[%clk 0:00:08]}  Bd4 {[%clk 0:02:14]} 28. Nf3 {[%clk 0:00:06]}  Bxe3 {[%clk 0:02:13]} 29. fxe3 {[%clk 0:00:06]}  Rxe3 {[%clk 0:02:12]} 30. dxe3 {[%clk 0:00:06]}  Rxd1 {[%clk 0:02:12]} 31. a4 {[%clk 0:00:05]}  Rd3 {[%clk 0:02:10]} 32. Nd4 {[%clk 0:00:06]}  Rxe3 {[%clk 0:02:09]} 33. c5 {[%clk 0:00:05]}  Rd3 {[%clk 0:02:08]} 34. Ne6 {[%clk 0:00:03]}  Rxb3 {[%clk 0:02:07]} 35. a5 {[%clk 0:00:03]}  Ra3 {[%clk 0:02:03]} 36. Nd8 {[%clk 0:00:03]}  Rb3 {[%clk 0:01:44]} 37. h4 {[%clk 0:00:03]}  Kf8 {[%clk 0:01:42]} 38. a6 {[%clk 0:00:02]}  bxa6 {[%clk 0:01:41]} 39. c6 {[%clk 0:00:03]}  Ke7 {[%clk 0:01:39]} 40. c7 {[%clk 0:00:03]}  Rc3 {[%clk 0:01:40]} 41. Kf2 {[%clk 0:00:01]}  Rxc7 {[%clk 0:01:40]} 0-1


[Site "https://www.chess.com"]

[Event "Titled Tuesday Blitz October 25 Late 2022"]
[White "Rios Escobar, Adan"]
[Black "Graif, William"]
[WhiteFideId "3403645"]
[BlackFideId "2609835"]
[WhiteElo "2370"]
[BlackElo "2205"]
[Result "1-0"]
[Round "07"]
[TimeControl "180+1"]
[Date "2022.10.26"]
[WhiteClock "0:00:19"]
[BlackClock "0:00:03"]

1. d4 {[%clk 0:02:54]}  Nf6 {[%clk 0:02:56]} 2. g3 {[%clk 0:02:55]}  d5 {[%clk 0:02:49]} 3. Nf3 {[%clk 0:02:54]}  Bf5 {[%clk 0:02:40]} 4. c4 {[%clk 0:02:52]}  c6 {[%clk 0:02:33]} 5. Nc3 {[%clk 0:02:51]}  e6 {[%clk 0:02:31]} 6. Nh4 {[%clk 0:02:52]}  Bg4 {[%clk 0:02:25]} 7. h3 {[%clk 0:02:52]}  Bh5 {[%clk 0:02:22]} 8. g4 {[%clk 0:02:53]}  Ne4 {[%clk 0:01:47]} 9. Nxe4 {[%clk 0:02:50]}  dxe4 {[%clk 0:01:42]} 10. Qb3 {[%clk 0:02:51]}  Qxh4 {[%clk 0:01:00]} 11. g5 {[%clk 0:02:42]}  b6 {[%clk 0:00:50]} 12. Be3 {[%clk 0:02:39]}  Be7 {[%clk 0:00:42]} 13. Rg1 {[%clk 0:02:38]}  Bg6 {[%clk 0:00:20]} 14. Rg4 {[%clk 0:02:38]}  Qh5 {[%clk 0:00:20]} 15. O-O-O {[%clk 0:02:36]}  Bf5 {[%clk 0:00:21]} 16. Rg3 {[%clk 0:02:34]}  Nd7 {[%clk 0:00:19]} 17. Kb1 {[%clk 0:02:32]}  O-O {[%clk 0:00:18]} 18. Ka1 {[%clk 0:02:32]}  Bd6 {[%clk 0:00:19]} 19. Rg1 {[%clk 0:02:31]}  Rfd8 {[%clk 0:00:18]} 20. Qc3 {[%clk 0:02:19]}  Rac8 {[%clk 0:00:17]} 21. Qd2 {[%clk 0:02:19]}  c5 {[%clk 0:00:16]} 22. d5 {[%clk 0:02:18]}  Ne5 {[%clk 0:00:14]} 23. Rc1 {[%clk 0:02:14]}  Be7 {[%clk 0:00:14]} 24. Bf4 {[%clk 0:02:13]}  Nc6 {[%clk 0:00:10]} 25. Qe3 {[%clk 0:01:58]}  exd5 {[%clk 0:00:10]} 26. cxd5 {[%clk 0:01:56]}  Rxd5 {[%clk 0:00:11]} 27. Qb3 {[%clk 0:01:50]}  Be6 {[%clk 0:00:10]} 28. e3 {[%clk 0:01:48]}  Rcd8 {[%clk 0:00:09]} 29. Bc4 {[%clk 0:01:47]}  Na5 {[%clk 0:00:09]} 30. Qa4 {[%clk 0:01:42]}  Nxc4 {[%clk 0:00:09]} 31. Rxc4 {[%clk 0:01:41]}  Rd1+ {[%clk 0:00:09]} 32. Rc1 {[%clk 0:01:42]}  Rxg1 {[%clk 0:00:08]} 33. Rxg1 {[%clk 0:01:41]}  Qe2 {[%clk 0:00:08]} 34. Rc1 {[%clk 0:01:27]}  Bf8 {[%clk 0:00:07]} 35. Be5 {[%clk 0:01:23]}  Qxf2 {[%clk 0:00:06]} 36. Qxe4 {[%clk 0:01:21]}  Qf5 {[%clk 0:00:06]} 37. Qh4 {[%clk 0:01:10]}  Qxe5 {[%clk 0:00:05]} 38. g6 {[%clk 0:01:10]}  fxg6 {[%clk 0:00:05]} 39. Qxd8 {[%clk 0:01:10]}  Qf6 {[%clk 0:00:05]} 40. Qb8 {[%clk 0:01:07]}  Bf7 {[%clk 0:00:04]} 41. Qxa7 {[%clk 0:01:06]}  Qe6 {[%clk 0:00:04]} 42. Rd1 {[%clk 0:00:58]}  Qxe3 {[%clk 0:00:04]} 43. Qxb6 {[%clk 0:00:55]}  Qxh3 {[%clk 0:00:04]} 44. a4 {[%clk 0:00:52]}  Qf3 {[%clk 0:00:04]} 45. Qd8 {[%clk 0:00:46]}  Qb3 {[%clk 0:00:02]} 46. Kb1 {[%clk 0:00:39]}  g5 {[%clk 0:00:03]} 47. Qd7 {[%clk 0:00:19]}  Bg6+ {[%clk 0:00:03]} 48. Ka1 {[%clk 0:00:20]}  Bf7 {[%clk 0:00:02]} 49. Kb1 {[%clk 0:00:19]}  Qa2+ {[%clk 0:00:03]} 50. Kc1 {[%clk 0:00:19]}  Qa1+ {[%clk 0:00:02]} 51. Kc2 {[%clk 0:00:19]}  Bg6+ {[%clk 0:00:03]} 52. Kc3 {[%clk 0:00:19]} 1-0


[Site "https://www.chess.com"]